Cogmind - Beta 16.1 @@@ ROGUE MODE // 2026.02.14 @ 21:07:29 Player: SilverswordXV Result: Destroyed by Y-45 Defender with Beam Rifle Performance ------------- Evolutions (2) 1000 Regions Visited (4) 800 Robots Destroyed (31) 155 Value Destroyed (1012) 1012 Prototype IDs (0) 0 Alien Tech Used (0) 0 Bonus (0) 0 TOTAL SCORE: 2967 Bonus ------- None Cogmind --------- Core Integrity 0/550 Matter 300/300 Energy 99/100 System Corruption 0% Temperature Cool (9) Movement Core (50) Location -8/Storage Parts ------- > --- POWER (1) -------- (None) > --- PROPULSION (3) --- (None) > --- UTILITY (5) ------ (None) > --- WEAPON (2) ------- (None) > --- INVENTORY (5) ---- Improved Ion Engine Hover Unit Medium Storage Unit Shotgun Rocket Launcher Peak State ------------ > --- POWER ------------ Light Deuterium Engine > --- PROPULSION ------- Aluminum Leg Aluminum Leg > --- UTILITY ---------- Improved Heat Sink Light Armor Plating Light Armor Plating Hardlight Generator > --- WEAPON ----------- Heavy Assault Rifle Heavy Assault Rifle > --- INVENTORY -------- Improved Ion Engine Medium Storage Unit Shotgun Shotgun Rocket Launcher [Rating: 17] Favorites ----------- Power Ion Engine Engine Ion Engine Propulsion Light Treads Treads Light Treads Leg Aluminum Leg Wheel Wheel Flight Unit Cesium-ion Thruster Utility Small Storage Unit Device Cooling System Storage Small Storage Unit Protection Light Armor Plating Weapon Light Assault Rifle Energy Gun Field Laser Ballistic Gun Light Assault Rifle Launcher Rocket Launcher Build | -11 -10 -9 -8 -8 ------- Run | Yrd Mat Mat Mat Sto Slots Evolved 4 | . . 2 2 . Power . | . . . . . Propulsion 1 | . . . 1 . Utility 3 | . . 2 1 . Weapon . | . . . . . Parts Attached 39 | 6 3 10 10 10 Power 7 | 1 1 3 1 1 Engine 7 | 1 1 3 1 1 Core . | . . . . . Reactor . | . . . . . Propulsion 12 | 2 1 4 3 2 Treads 7 | 2 . 4 1 . Leg 2 | . . . . 2 Wheel 1 | . 1 . . . Hover . | . . . . . Flight 2 | . . . 2 . Utility 8 | 1 1 1 2 3 Device 4 | . 1 1 1 1 Storage 1 | 1 . . . . Processor . | . . . . . Hackware . | . . . . . Protection 3 | . . . 1 2 Artifact . | . . . . . Weapon 12 | 2 . 2 4 4 Energy Gun 1 | . . . 1 . Energy Cannon . | . . . . . Ballistic Gun 10 | 2 . 1 3 4 Ballistic Cannon . | . . . . . Launcher 1 | . . 1 . . Special Weapon . | . . . . . Impact Weapon . | . . . . . Slashing Weapon . | . . . . . Piercing Weapon . | . . . . . Special Melee Weapon . | . . . . . Unidentified Prototypes . | . . . . . Parts Lost 15 | . 4 1 2 8 Power 2 | . 1 . . 1 Propulsion 5 | . 2 . 1 2 Utility 4 | . 1 . . 3 Weapon 4 | . . 1 1 2 Highest Loss Streak 6 | . 4 1 1 6 To Critical Strikes 1 | . 1 . . . Average Backups 4 | 1 3 4 6 5 Power 1 | . 1 . 1 . Propulsion 1 | . . 1 2 . Utility . | . . 1 1 1 Weapon 1 | . 1 1 1 2 Tool/Special . | . . . . . Unused Backups 7 | . . 1 1 5 Power 1 | . . . . 1 Propulsion 1 | . . . . 1 Utility 4 | . . 1 1 2 Weapon 1 | . . . . 1 Tool/Special . | . . . . . Average Slot Usage (%) 63 | . 90 66 47 46 Engine 7 | . 11 10 1 5 Treads 10 | . 24 11 3 . Leg 1 | . . . . 5 Wheel 2 | . 1 5 . 2 Flight 3 | . . . 13 1 Device 8 | . 9 9 2 11 Storage 8 | . 14 11 9 1 Protection 2 | . . . 2 5 Ballistic Gun 17 | . 28 18 11 11 Peak Build Rating 17 | 6 7 9 13 17 Average Rating 8 | 4 6 7 8 11 On Entrance 5 | . 6 4 8 8 Avg Prop Armor Cover (%) 15 | . . 15 . . Naked Turns 40 | . . . . 40 Heaviest Build 23 | 12 13 18 22 23 Greatest Support 60 | 40 40 40 60 20 Greatest Overweight (x) 6 | . . 1 1 6 Average Overweight (x) . | . . . . . Largest Inventory Capacity 8 | 8 8 8 8 8 Average Capacity 7 | 6 8 8 8 5 Most Carried 8 | 3 4 8 8 8 Average Carried 4 | 1 3 4 6 4 Final Capacity 8 | 8 8 8 8 5 Final Carried 8 | 3 3 7 8 5 Class Distribution -------------------- 86% | Mutant 13% | Scavenger-Mutant Dominant Class ---------------- Mutant | -10/Materials Mutant | -9/Materials Mutant | -8/Materials Scavenger-Mutant | -8/Storage Resources | -11 -10 -9 -8 -8 ----------- Run | Yrd Mat Mat Mat Sto Matter Collected 978 | 260 65 126 151 376 Remotely . | . . . . . Salvage Created 1130 | . 216 382 156 376 Parts 64 | . 15 17 15 17 Haulers Intercepted . | . . . . . Recyclers Shooed . | . . . . . Parts Field Recycled . | . . . . . Retrieved Matter . | . . . . . Parts Self-Destructed . | . . . . . Prevented . | . . . . . Parts Restored . | . . . . . Kills | -11 -10 -9 -8 -8 ------- Run | Yrd Mat Mat Mat Sto Combat Hostiles Destroyed 29 | . 7 9 6 7 Guns 22 | . 7 6 3 6 AOE 6 | . . 3 3 . Classes Destroyed 6 | . 2 3 1 . Worker 2 | . . 2 . . Swarmer 6 | . 3 . 3 . Grunt 15 | . 4 7 2 2 Brawler 2 | . . 1 . 1 Sentry 5 | . . 1 . 4 Hunter 1 | . . . 1 . Best Kill Streak 7 | . 4 7 3 3 Combat Bots Only 5 | . 4 5 3 3 Max Kills in Single Turn 2 | . 1 2 2 1 Gunslinging . | . . . . . Exploded 2 | . . 2 2 . Melee . | . . . . . Uniques/NPCs Destroyed . | . . . . . Combat | -11 -10 -9 -8 -8 -------- Run | Yrd Mat Mat Mat Sto Hostile Shots Fired 339 | . 84 76 39 140 Missed 104 | . 23 28 15 38 Hits 235 | . 61 48 24 102 Melee 3 | . . 2 . 1 Projectile 232 | . 61 46 24 101 Critical Strikes 13 | . 2 3 . 8 Damage Taken 2863 | . 647 663 383 1170 Core 836 | . 106 167 160 403 Absorbed by Shields 188 | . . . . 188 Redirected to Shielding 39 | . . . 39 . Regen/Repaired (Parts) 31 | . . . 31 . Core Remaining (%) 71 | 100 57 58 . . Volleys Fired 128 | . 27 43 22 36 Largest 2 | . 2 2 2 2 Hottest 63 | . 40 53 63 63 Shots Fired 218 | . 54 79 23 62 Gun 213 | . 54 77 20 62 Cannon . | . . . . . Launcher 5 | . . 2 3 . Special . | . . . . . Kinetic 197 | . 54 77 14 52 Thermal 16 | . . . 6 10 Explosive 5 | . . 2 3 . Electromagnetic . | . . . . . Robot Hit Streak 11 | . 11 11 6 11 Robot Miss Streak 4 | . 4 3 2 3 Penetration Max . | . . . . . Secondary Targets 1 | . 1 . . . Max Gunslinging Chain 1 | . 1 . . . Shots Hit Robots 152 | . 36 54 16 46 Core Hits 72 | . 17 25 13 17 Critical Kills 1 | . . . . 1 Critical Parts Destroyed 1 | . . 1 . . Critical Strikes 3 | . . 1 . 2 Burn 1 | . . . . 1 Destroy 2 | . . 1 . 1 Melee Attacks . | . . . . . Impact . | . . . . . Slashing . | . . . . . Piercing . | . . . . . Sneak Attacks . | . . . . . Combat Hostiles . | . . . . . Follow-up Attacks . | . . . . . Damage Inflicted 2253 | . 289 830 351 783 Guns 1728 | . 289 470 204 765 Cannons . | . . . . . Explosions 507 | . . 360 147 . Melee . | . . . . . Ramming 18 | . . . . 18 Kinetic 1505 | . 289 470 136 610 Thermal 223 | . . . 68 155 Explosive 507 | . . 360 147 . Electromagnetic . | . . . . . Impact . | . . . . . Slashing . | . . . . . Piercing . | . . . . . Highest Corruption 4 | . . 4 . . Average Corruption 4 | . . 4 . . Corruption Purged . | . . . . . Corruption Blocked . | . . . . . Effects 3 | . . 3 . . Energy Discharges 1 | . . 1 . . Misfires 2 | . . 2 . . Overload Shots . | . . . . . Overflow Damage 17 | . . 11 6 . Projectiles . | . . . . . Explosions 17 | . . 11 6 . Melee . | . . . . . Knockbacks . | . . . . . Impact . | . . . . . Kinetic . | . . . . . Secondary . | . . . . . Self-Inflicted Damage 76 | . . . 67 9 Shots 2 | . . . 2 . Rammed 4 | . . . . 4 Targets Rammed 4 | . . . . 4 Kicked . | . . . . . Crushed . | . . . . . Highest Temperature 36 | . 36 2 20 13 Average Temperature 12 | . 15 2 9 6 Received Heat Transfer 1147 | . 264 282 117 484 Siege Activations . | . . . . . Martial Activations . | . . . . . Shielding Activations . | . . . . . Robots Disrupted . | . . . . . Combat Hostiles . | . . . . . Robots Corrupted . | . . . . . Combat Hostiles . | . . . . . Parts Fried . | . . . . . Impact Corruptions . | . . . . . Robots Melted 1 | . . . . 1 Combat Hostiles 1 | . . . . 1 Parts Melted 4 | . . . . 4 Heat Transferred 555 | . . . 148 407 Parts Sabotaged . | . . . . . Parts Stolen . | . . . . . Parts Stripped . | . . . . . Power Chain Reactions . | . . . . . Alert | -11 -10 -9 -8 -8 ------- Run | Yrd Mat Mat Mat Sto Maximum Alert Level . | . . . . . Low Security (%) 100 | 100 100 100 100 100 Level 1 . | . . . . . Level 2 . | . . . . . Level 3 . | . . . . . Level 4 . | . . . . . Level 5 . | . . . . . High Security . | . . . . . Max Security . | . . . . . Peak Influence 152 | . 130 152 132 112 Initial 50 | . . 50 50 46 Average 63 | . 37 78 95 57 Influence Increases 925 | . 240 257 212 216 Destroy 0b10 Robot/C 580 | . 140 180 120 140 Destroy 0b10 Robot/NC 10 | . . 10 . . Destroy Leader 140 | . 40 30 30 40 Successful Hack 30 | . . . 9 21 Select Force Hacks 30 | . 30 . . . Disable Machine 15 | . . 15 . . Destroy Structure 30 | . . 7 23 . Partial Spotted 30 | . . . 30 . Lose Combat Pursuer 60 | . 30 15 . 15 Influence Decreases 903 | . 120 258 219 306 Entered New Map 205 | . . 70 69 66 Time Decay 548 | . 80 178 130 160 Lost Part 150 | . 40 10 20 80 Squads Dispatched 7 | . 3 . 2 2 Investigation 2 | . 1 . 1 . Extermination . | . . . . . Reinforcement 5 | . 2 . 1 2 Assault . | . . . . . Garrison . | . . . . . Intercept . | . . . . . Searches Triggered . | . . . . . Construction Impeded . | . . . . . Haulers Reinforced . | . . . . . Active Scanning Responses . | . . . . . Cargo Convoy Interrupts . | . . . . . Stealth | -11 -10 -9 -8 -8 --------- Run | Yrd Mat Mat Mat Sto Distress Signals 9 | . 4 3 1 1 Communications Jammed . | . . . . . Distress Signals . | . . . . . Times Spotted 62 | . 15 16 12 19 Peak Tracking Total 9 | . 7 6 5 9 Tactical Retreats 4 | . 2 1 . 1 Traps | -11 -10 -9 -8 -8 ------- Run | Yrd Mat Mat Mat Sto Traps Triggered 2 | . . . . 2 Indirectly . | . . . . . Trap Hack Attempts . | . . . . . Triggered . | . . . . . Disarmed . | . . . . . Reprogrammed . | . . . . . Reused . | . . . . . Traps Extracted . | . . . . . Installed . | . . . . . Triggered . | . . . . . Machines | -11 -10 -9 -8 -8 ---------- Run | Yrd Mat Mat Mat Sto Machines Disabled 1 | . . 1 . . Max in Single Turn 1 | . . 1 . . Machines Repaired . | . . . . . Machines Dismantled . | . . . . . Machines Sabotaged . | . . . . . Overloaded Fab Kills . | . . . . . Hacking | -11 -10 -9 -8 -8 --------- Run | Yrd Mat Mat Mat Sto Machines Accessed 16 | . 2 4 4 6 Terminals 8 | . 1 2 1 4 Fabricators . | . . . . . Repair Stations 2 | . . . 1 1 Recycling Units 5 | . 1 2 1 1 Scanalyzers 1 | . . . 1 . Garrison Access . | . . . . . Total Hacks 37 | . 3 8 15 11 Successful 19 | . 2 2 11 4 Failed 18 | . 1 6 4 7 Catastrophic 7 | . 1 1 1 4 Database Lockouts . | . . . . . Manual 19 | . 3 7 2 7 Terminals 15 | . 1 4 2 8 Fabricators . | . . . . . Repair Stations 7 | . . . 5 2 Recycling Units 13 | . 2 4 6 1 Scanalyzers 2 | . . . 2 . Garrison Access . | . . . . . Terminal Hacks 3 | . . . 1 2 Part Schematic 1 | . . . 1 . Open Door 1 | . . . . 1 Zone Layout 1 | . . . . 1 Fabricator Hacks . | . . . . . Repair Station Hacks 5 | . . . 4 1 Scan Component 3 | . . . 2 1 Repair 2 | . . . 2 . Recycling Unit Hacks 6 | . . 1 5 . Recycle Component 1 | . . . 1 . Process 2 | . . . 2 . Retrieve Matter 2 | . . . 2 . Retrieve Components 1 | . . 1 . . Scanalyzer 1 | . . . 1 . Retrieve Study 1 | . . . 1 . Garrison Access Hacks . | . . . . . Unauthorized Hacks 4 | . 2 1 . 1 Terminals . | . . . . . Fabricators . | . . . . . Repair Stations . | . . . . . Recycling Units 4 | . 2 1 . 1 Monitor 2 | . 1 1 . . Mask 1 | . . . . 1 Tunnel 1 | . 1 . . . Scanalyzers . | . . . . . Garrison Access . | . . . . . Data Cores Recovered . | . . . . . Used . | . . . . . Hacking Detections 12 | . 1 4 3 4 Full Trace Events 1 | . . . 1 . Feedback Events . | . . . . . Feedback Blocked . | . . . . . Robot Schematics Acquired . | . . . . . Robots Built . | . . . . . Authchips . | . . . . . Time . | . . . . . Total Robot Build Rating . | . . . . . Part Schematics Acquired 1 | . . . 1 . Parts Built . | . . . . . Authchips . | . . . . . Time . | . . . . . Total Part Build Rating . | . . . . . Part Studies Acquired 1 | . . . 1 . Parts Repaired 2 | . . . 2 . Time 58 | . . . 58 . Parts Recycled 1 | . . . 1 . Recycled Matter 8 | . . . 8 . Retrieved Matter 8 | . . . 8 . Retrieved Components 1 | . . 1 . . Parts Scanalyzed . | . . . . . Part Schematics Acquired . | . . . . . Parts Damaged . | . . . . . Bothacking | -11 -10 -9 -8 -8 ------------ Run | Yrd Mat Mat Mat Sto Used RIF Installer . | . . . . . Robots Hacked . | . . . . . Non-combat . | . . . . . Combat . | . . . . . Robot Hacks Applied . | . . . . . Relay Couplers Released . | . . . . . Fabnet Peak Effective % . | . . . . . Robots Rewired . | . . . . . Allies Hacked . | . . . . . Hacks Repelled . | . . . . . Allies | -11 -10 -9 -8 -8 -------- Run | Yrd Mat Mat Mat Sto Total Allies . | . . . . . Largest Group . | . . . . . Highest-Rated Group . | . . . . . Highest-Rated Ally . | . . . . . Total Orders . | . . . . . Ally Attacks . | . . . . . Total Damage . | . . . . . Kills . | . . . . . Allies Corrupted . | . . . . . Allies Melted . | . . . . . Intel | -11 -10 -9 -8 -8 ------- Run | Yrd Mat Mat Mat Sto Active Infowar (turns) 221 | . 221 . . . Terrain 221 | . 221 . . . Robot Analysis Total . | . . . . . Derelict Logs Recovered . | . . . . . Drone Launches . | . . . . . Drone Recoveries . | . . . . . Exploration | -11 -10 -9 -8 -8 ------------- Run | Yrd Mat Mat Mat Sto Turns Passed 1410 | 87 303 419 277 324 Spaces Moved 975 | 49 154 253 301 218 Core 85 | 2 . . . 83 Treads 262 | 47 127 73 15 . Legs 29 | . . . . 29 Wheels 287 | . 27 180 . 80 Hover . | . . . . . Flight 312 | . . . 286 26 Fastest Speed 34 | 50 80 80 34 35 Average Speed 91 | 155 145 109 42 84 Slowest Speed 350 | 160 160 160 240 350 Overloaded Moves . | . . . . . Propulsion Burnouts . | . . . . . Robots Hopped 5 | . . . 3 2 Potential Cave-ins . | . . . . . Cave-ins Triggered . | . . . . . Exploration Rate (%) 26 | 4 36 30 24 40 Regions Visited 4 Branch Regions 1 Pre-discovered Areas 1 | . 1 . . . Known Exits Taken . | . . . . . Unknown Exits Taken 4 | 1 1 1 1 . Scrap Searched . | . . . . . Spaces Dug . | . . . . . Terrain Destroyed 38 | . . 7 31 . Melee . | . . . . . Projectile . | . . . . . AOE 38 | . . 7 31 . Terrain Rammed . | . . . . . Walls Destroyed . | . . . . . Machines Disabled . | . . . . . Actions | -11 -10 -9 -8 -8 --------- Run | Yrd Mat Mat Mat Sto Total 1299 | 57 188 333 428 293 Wait 96 | . 3 14 68 11 Move 961 | 48 153 252 294 214 Hop 5 | . . . 3 2 Pick Up 17 | 3 1 3 5 5 Fast Attach 29 | 6 1 4 10 8 Attach 14 | . 1 4 4 5 Detach 17 | . . 5 10 2 Swap 5 | . 1 4 . . Drop 23 | . 1 4 12 6 Fire 128 | . 27 43 22 36 Melee . | . . . . . Ram 4 | . . . . 4 Kick . | . . . . . Crush . | . . . . . Escape Stasis . | . . . . . Rewire . | . . . . . Trap . | . . . . . Miscellaneous . | . . . . . Route ------- -11/Scrapyard -10/Materials -9/Materials -8/Materials -8/Storage History --------- Turn | Location | Event 6 | -11/Scrapyard | Discovered new exit (range 15) 88 | -11/Scrapyard | Entered Materials 221 | -10/Materials | Discovered new exit (range 11) 310 | -10/Materials | Build established: Mutant 391 | -10/Materials | Entered another Materials area 391 | -9/Materials | Evolved 2 slots: Utility x2 396 | -9/Materials | Lost 4 parts (1p2n1u) 791 | -9/Materials | Discovered new exit (range 15) 810 | -9/Materials | Entered another Materials area 810 | -8/Materials | Evolved 2 slots: Propulsion x1, Utility x1 921 | -8/Materials | Repaired Flight Unit 955 | -8/Materials | Repaired Rocket Launcher 1074 | -8/Materials | Discovered new exit (range 16) 1087 | -8/Materials | Entered Storage 1366 | -8/Storage | Core integrity fell below 50% 1371 | -8/Storage | Released all parts (3) 1384 | -8/Storage | Core integrity fell below 20% 1401 | -8/Storage | Lost 6 parts (1p3u2w) 1411 | -8/Storage | Destroyed by Y-45 Defender with Beam Rifle Last Messages --------------- 01371_ Released Aluminum Leg. 01371_ Released Imp. Heat Sink. 01371_ Released Aluminum Leg. 01372_ Acquired 55 matter. 01377_ Connecting with Terminal... >>Layout(Zone) Retrieving Zone 4D layout... Downloaded map data. 01379_ S-10 Pest destroyed. 01380_ Slammed into S-10 Pest. 01381_ Critical hit (Burn: +37). 01383_ Slammed into G-47 Trooper. 01387_ Slammed into K-01 Serf. 01391_ Slammed into U-05 Engineer. 01403_ O-24 Administrator sends out distress signal. 01403_ O-24 Administrator: "IFF HANDSHAKE FAILED. SECURING TERMINAL." 01411_ ALERT: Hostiles spotted, dispatching reinforcements to Terminal S013. Map ----- +----------------------------------------------------+ | ??????????????????????????????????????? | | ??????????????????????????????????????? | | ??????????????????????????????????????? | | ??????????????????????????????????????? | | ??????????????????????????????????????? | | ??????????????????????????????????????? | | ??????????????????????????????????????? | | ??????????????????????????????????????? | | ??????????????????????????????????????? | | ??????????????????????????????????????? | | ??????????????????????????????????????? | | ??????????????????????????????????????? | | ??????????????????????????????????????? | | ??????????????????????????????????????? | | ??????????????????????????????????????? | | ??????????????????????????????????????? | | ???????????????##?????????????????????? | | ???????????????T"######???????????????? | | ???????????????? #???????????????? | | ????????????????" ????????????????? | | ????????????????" ???????#"#####???? | | ???????????????? ????????T ##T"#?### | | ???????# ########Y###########+## "### | | ???????# r | | ?????????????# | | ?????????????#@ k | | ?????????????# #### ################# | | ?????????????#+#??#+#???????????????## | | ?????????????????????????????????????# | | ?????????????????????????????????????# | | ?????????????????????????????????????# | | ?????????????????????????????????????# | | ?????????????????????????????????????# | | ?????????????????????????????????????# | | ?????????????????????????????????????# | | ?????????????????????????????????????# | | ????????????????????????????????###### | | ????????????????????????? | | ????????????????????????? | | ????????????????????????? | | ??????????????????????????############# | | ??????????????????????????????????????? | | ??????????????????????????????????????? | | | | | | | | | | | | | | | +----------------------------------------------------+ Best States ------------- Heat Dissipation 53 Energy Generation 14 Energy Capacity 265 Matter Stores 300 Matter Capacity 300 Sight Range 16 Terrain Scan Range 14 Terrain Scan Density 10 Armor Coverage 300 Propulsion Shielding 66 Evasion (%) 63 Recoil Reduction 3 Item Schematics ----------------- Imp. Targeting Computer | -8/Materials | Hacked Robot Schematics ------------------ None Fabricated ------------ Nothing Repaired ---------- Flight Unit | 10% | -8/Materials Rocket Launcher | 81% | -8/Materials Studied --------- Cesium-ion Thruster | -8/Materials | Hacked Alien Tech Used ----------------- None Achievements -------------- None Challenges ------------ None Game ------ Seed WeightDisintegrationDiverter Manual? 0 Play Time 00:28:34 Cumulative 42.2 hours Start 2026.02.14 @ 20:37:56 End 2026.02.14 @ 21:07:29 Sessions 1 Manual Loads 0 Difficulty Rogue Special Mode None Game No. 43 Rogue 43 Adventurer 0 Explorer 0 Win Type - Total 0 Types 0/0/0/0/0/0/0/0/0/0 Lore% 20 Gallery% 27 Achievement% 24 Wizard Run 0 Options --------- Layout 1 ASCII 0 Keyboard 1 Movement Numpad Keybinds 0 Fullscreen 1 Font 24/Smallcaps Map View 50x35 Zoom Use 0% Tactical HUD 1 Map Filters NONE Filters NONE Steam 1 RUN: 4b9d5856-5532-4150-affd-c5c292b28ba5